[Event "Titled Tuesday Blitz March 01 Early 2022"]
[White "Jumabayev, Rinat"]
[Black "Abdyzhapar, Asylbek"]
[WhiteFideId "13702661"]
[BlackFideId "13800337"]
[WhiteElo "2561"]
[BlackElo "2331"]
[Result "1-0"]
[Round "09"]
[TimeControl "180+1"]
[Date "2022.03.01"]
[WhiteClock "0:00:13"]
[BlackClock "0:00:11"]

1. d4 {[%clk 0:03:00]}  Nf6 {[%clk 0:02:59]} 2. c4 {[%clk 0:03:00]}  g6 {[%clk 0:02:59]} 3. Nc3 {[%clk 0:03:00]}  Bg7 {[%clk 0:02:59]} 4. e4 {[%clk 0:03:01]}  d6 {[%clk 0:02:59]} 5. f3 {[%clk 0:03:01]}  O-O {[%clk 0:02:57]} 6. Be3 {[%clk 0:03:01]}  Nbd7 {[%clk 0:02:57]} 7. Nge2 {[%clk 0:03:02]}  a6 {[%clk 0:02:58]} 8. Qd2 {[%clk 0:03:02]}  c5 {[%clk 0:02:58]} 9. dxc5 {[%clk 0:02:56]}  Nxc5 {[%clk 0:02:55]} 10. e5 {[%clk 0:02:56]}  Nfd7 {[%clk 0:02:41]} 11. exd6 {[%clk 0:02:53]}  exd6 {[%clk 0:02:40]} 12. Nf4 {[%clk 0:02:40]}  Re8 {[%clk 0:02:37]} 13. Be2 {[%clk 0:02:33]}  Ne5 {[%clk 0:02:19]} 14. O-O {[%clk 0:02:31]}  Ne6 {[%clk 0:02:12]} 15. Nfd5 {[%clk 0:02:29]}  Nc6 {[%clk 0:02:05]} 16. Rfd1 {[%clk 0:02:12]}  Ned4 {[%clk 0:01:59]} 17. Bf1 {[%clk 0:02:11]}  Be6 {[%clk 0:01:46]} 18. Rac1 {[%clk 0:02:08]}  Rc8 {[%clk 0:01:33]} 19. Qf2 {[%clk 0:01:55]}  Nf5 {[%clk 0:01:28]} 20. Bb6 {[%clk 0:01:54]}  Qg5 {[%clk 0:01:27]} 21. Ne4 {[%clk 0:01:53]}  Qh6 {[%clk 0:01:20]} 22. Ndf6+ {[%clk 0:01:49]}  Kh8 {[%clk 0:01:19]} 23. Nxe8 {[%clk 0:01:49]}  Rxe8 {[%clk 0:01:18]} 24. Qd2 {[%clk 0:01:34]}  Qh4 {[%clk 0:01:15]} 25. Bf2 {[%clk 0:01:31]}  Qe7 {[%clk 0:01:11]} 26. Nxd6 {[%clk 0:01:30]}  Nxd6 {[%clk 0:01:06]} 27. Qxd6 {[%clk 0:01:31]}  Qg5 {[%clk 0:01:03]} 28. Qd2 {[%clk 0:01:27]}  Qh5 {[%clk 0:01:00]} 29. b4 {[%clk 0:01:17]}  Be5 {[%clk 0:01:00]} 30. f4 {[%clk 0:01:17]}  Bb8 {[%clk 0:00:48]} 31. b5 {[%clk 0:01:17]}  Ne7 {[%clk 0:00:44]} 32. Re1 {[%clk 0:01:05]}  Kg8 {[%clk 0:00:41]} 33. c5 {[%clk 0:01:01]}  axb5 {[%clk 0:00:38]} 34. Bxb5 {[%clk 0:01:00]}  Nc6 {[%clk 0:00:39]} 35. Bc4 {[%clk 0:00:52]}  Qg4 {[%clk 0:00:39]} 36. Bxe6 {[%clk 0:00:50]}  fxe6 {[%clk 0:00:38]} 37. Rc4 {[%clk 0:00:48]}  Rf8 {[%clk 0:00:36]} 38. Bg3 {[%clk 0:00:48]}  h5 {[%clk 0:00:35]} 39. Qe2 {[%clk 0:00:46]}  Qxe2 {[%clk 0:00:31]} 40. Rxe2 {[%clk 0:00:47]}  Kf7 {[%clk 0:00:31]} 41. Rb2 {[%clk 0:00:43]}  Nd8 {[%clk 0:00:28]} 42. f5 {[%clk 0:00:43]}  Bxg3 {[%clk 0:00:26]} 43. fxg6+ {[%clk 0:00:40]}  Kxg6 {[%clk 0:00:26]} 44. hxg3 {[%clk 0:00:40]}  Rf7 {[%clk 0:00:26]} 45. Re4 {[%clk 0:00:38]}  Re7 {[%clk 0:00:24]} 46. a4 {[%clk 0:00:36]}  Nc6 {[%clk 0:00:23]} 47. Rf2 {[%clk 0:00:36]}  e5 {[%clk 0:00:23]} 48. g4 {[%clk 0:00:36]}  h4 {[%clk 0:00:22]} 49. Kh2 {[%clk 0:00:36]}  Rd7 {[%clk 0:00:21]} 50. Rb2 {[%clk 0:00:31]}  Kg5 {[%clk 0:00:20]} 51. Rb3 {[%clk 0:00:29]}  Rf7 {[%clk 0:00:18]} 52. Rf3 {[%clk 0:00:28]}  Rd7 {[%clk 0:00:17]} 53. Rf5+ {[%clk 0:00:19]}  Kg6 {[%clk 0:00:17]} 54. Rh5 {[%clk 0:00:19]}  Rd5 {[%clk 0:00:17]} 55. Rxh4 {[%clk 0:00:19]}  Rxc5 {[%clk 0:00:17]} 56. Rh8 {[%clk 0:00:19]}  Rc2 {[%clk 0:00:17]} 57. Rg8+ {[%clk 0:00:19]}  Kf7 {[%clk 0:00:17]} 58. Rc8 {[%clk 0:00:18]}  Rb2 {[%clk 0:00:17]} 59. Rc7+ {[%clk 0:00:18]}  Ke6 {[%clk 0:00:16]} 60. Re3 {[%clk 0:00:14]}  Kd5 {[%clk 0:00:15]} 61. g5 {[%clk 0:00:14]}  Rb4 {[%clk 0:00:13]} 62. g6 {[%clk 0:00:13]}  Rg4 {[%clk 0:00:12]} 63. Rg3 {[%clk 0:00:13]}  Rh4+ {[%clk 0:00:11]} 64. Kg1 {[%clk 0:00:14]}  Rh8 {[%clk 0:00:12]} 65. g7 {[%clk 0:00:13]}  Rg8 {[%clk 0:00:12]} 66. Rf7 {[%clk 0:00:14]}  Ke6 {[%clk 0:00:11]} 67. Rf8 {[%clk 0:00:14]}  Ne7 {[%clk 0:00:11]} 68. Kf2 {[%clk 0:00:13]} 1-0


[Site "https://www.chess.com"]

[Event "Titled Tuesday Blitz March 01 Early 2022"]
[White "Kanyamarala, Tarun"]
[Black "Vokhidov, Shamsiddin"]
[WhiteFideId "45004714"]
[BlackFideId "14204223"]
[WhiteElo "2144"]
[BlackElo "2611"]
[Result "0-1"]
[Round "09"]
[TimeControl "180+1"]
[Date "2022.03.01"]
[WhiteClock "0:00:02"]
[BlackClock "0:01:05"]

1. d4 {[%clk 0:03:00]}  Nf6 {[%clk 0:03:00]} 2. c4 {[%clk 0:03:00]}  e6 {[%clk 0:03:00]} 3. Nc3 {[%clk 0:03:00]}  Bb4 {[%clk 0:03:00]} 4. e3 {[%clk 0:03:01]}  O-O {[%clk 0:03:00]} 5. Bd2 {[%clk 0:03:01]}  b6 {[%clk 0:03:00]} 6. Nf3 {[%clk 0:03:00]}  Bb7 {[%clk 0:03:01]} 7. Bd3 {[%clk 0:02:59]}  c5 {[%clk 0:03:00]} 8. a3 {[%clk 0:02:59]}  Bxc3 {[%clk 0:02:59]} 9. Bxc3 {[%clk 0:02:59]}  d6 {[%clk 0:02:59]} 10. O-O {[%clk 0:02:53]}  Nbd7 {[%clk 0:02:59]} 11. b4 {[%clk 0:02:53]}  Ne4 {[%clk 0:02:59]} 12. Bb2 {[%clk 0:02:49]}  f5 {[%clk 0:02:58]} 13. Nd2 {[%clk 0:02:48]}  Qh4 {[%clk 0:02:55]} 14. f3 {[%clk 0:02:44]}  Nxd2 {[%clk 0:02:52]} 15. Qxd2 {[%clk 0:02:43]}  Rad8 {[%clk 0:02:52]} 16. Qf2 {[%clk 0:02:39]}  Qe7 {[%clk 0:02:50]} 17. Rad1 {[%clk 0:02:31]}  e5 {[%clk 0:02:50]} 18. Qc2 {[%clk 0:02:15]}  e4 {[%clk 0:02:42]} 19. fxe4 {[%clk 0:02:14]}  Bxe4 {[%clk 0:02:40]} 20. Bxe4 {[%clk 0:02:09]}  fxe4 {[%clk 0:02:40]} 21. Rde1 {[%clk 0:01:58]}  h6 {[%clk 0:02:35]} 22. Rf4 {[%clk 0:01:54]}  Rxf4 {[%clk 0:02:34]} 23. exf4 {[%clk 0:01:54]}  Re8 {[%clk 0:02:35]} 24. d5 {[%clk 0:01:50]}  e3 {[%clk 0:02:13]} 25. Qg6 {[%clk 0:01:31]}  Nf8 {[%clk 0:02:12]} 26. Qg3 {[%clk 0:01:27]}  Qc7 {[%clk 0:02:06]} 27. b5 {[%clk 0:01:19]}  Qe7 {[%clk 0:02:03]} 28. Kh1 {[%clk 0:01:17]}  g5 {[%clk 0:01:56]} 29. h4 {[%clk 0:01:07]}  Ng6 {[%clk 0:01:56]} 30. fxg5 {[%clk 0:00:57]}  hxg5 {[%clk 0:01:57]} 31. hxg5 {[%clk 0:00:53]}  Qe4 {[%clk 0:01:49]} 32. Kg1 {[%clk 0:00:39]}  Qf4 {[%clk 0:01:37]} 33. Qxf4 {[%clk 0:00:23]}  Nxf4 {[%clk 0:01:37]} 34. Bc1 {[%clk 0:00:22]}  Re4 {[%clk 0:01:37]} 35. Rxe3 {[%clk 0:00:14]}  Rxc4 {[%clk 0:01:35]} 36. Re8+ {[%clk 0:00:14]}  Kf7 {[%clk 0:01:34]} 37. Bxf4 {[%clk 0:00:13]}  Kxe8 {[%clk 0:01:33]} 38. Bxd6 {[%clk 0:00:13]}  Rd4 {[%clk 0:01:06]} 39. Bb8 {[%clk 0:00:10]}  c4 {[%clk 0:01:04]} 40. Bxa7 {[%clk 0:00:01]}  c3 {[%clk 0:01:04]} 41. Bxb6 {[%clk 0:00:02]}  c2 {[%clk 0:01:04]} 42. Bxd4 {[%clk 0:00:02]}  c1=Q+ {[%clk 0:01:05]} 43. Kf2 {[%clk 0:00:02]}  Qf4+ {[%clk 0:01:05]} 0-1


[Site "https://www.chess.com"]

[Event "Titled Tuesday Blitz March 01 Early 2022"]
[White "Kanyamarala, Trisha"]
[Black "Voege, Tobias"]
[WhiteFideId "45004722"]
[BlackFideId "1270513"]
[WhiteElo "2002"]
[BlackElo "2335"]
[Result "0-1"]
[Round "09"]
[TimeControl "180+1"]
[Date "2022.03.01"]
[WhiteClock "0:00:02"]
[BlackClock "0:00:03"]

1. d4 {[%clk 0:02:48]}  Nf6 {[%clk 0:02:59]} 2. c4 {[%clk 0:02:44]}  g6 {[%clk 0:02:58]} 3. Nc3 {[%clk 0:02:42]}  Bg7 {[%clk 0:02:57]} 4. e4 {[%clk 0:02:42]}  d6 {[%clk 0:02:57]} 5. Nf3 {[%clk 0:02:40]}  O-O {[%clk 0:02:57]} 6. Be2 {[%clk 0:02:39]}  e5 {[%clk 0:02:53]} 7. d5 {[%clk 0:02:39]}  Nbd7 {[%clk 0:02:52]} 8. h3 {[%clk 0:02:33]}  Nh5 {[%clk 0:02:49]} 9. g3 {[%clk 0:02:27]}  a5 {[%clk 0:02:44]} 10. Be3 {[%clk 0:02:21]}  Nc5 {[%clk 0:02:40]} 11. Nd2 {[%clk 0:02:07]}  Nf6 {[%clk 0:02:32]} 12. g4 {[%clk 0:01:46]}  Nfd7 {[%clk 0:02:16]} 13. Qc2 {[%clk 0:01:38]}  c6 {[%clk 0:02:11]} 14. O-O-O {[%clk 0:01:10]}  a4 {[%clk 0:02:06]} 15. Kb1 {[%clk 0:01:06]}  Qa5 {[%clk 0:01:52]} 16. h4 {[%clk 0:00:54]}  h6 {[%clk 0:01:32]} 17. Nf1 {[%clk 0:00:39]}  Qc7 {[%clk 0:00:52]} 18. Qd2 {[%clk 0:00:34]}  Kh7 {[%clk 0:00:45]} 19. Ng3 {[%clk 0:00:22]}  a3 {[%clk 0:00:21]} 20. b3 {[%clk 0:00:18]}  Rd8 {[%clk 0:00:19]} 21. h5 {[%clk 0:00:17]}  g5 {[%clk 0:00:16]} 22. dxc6 {[%clk 0:00:16]}  bxc6 {[%clk 0:00:15]} 23. Qxd6 {[%clk 0:00:16]}  Qa5 {[%clk 0:00:14]} 24. Bd2 {[%clk 0:00:12]}  Bf8 {[%clk 0:00:12]} 25. Qxc6 {[%clk 0:00:07]}  Bb7 {[%clk 0:00:09]} 26. Qb5 {[%clk 0:00:07]}  Qxb5 {[%clk 0:00:08]} 27. Nxb5 {[%clk 0:00:08]}  Nxe4 {[%clk 0:00:08]} 28. Bd3 {[%clk 0:00:08]}  Nc5 {[%clk 0:00:08]} 29. Nxe4 {[%clk 0:00:07]}  Nxd3 {[%clk 0:00:08]} 30. f3 {[%clk 0:00:03]}  Bxe4 {[%clk 0:00:07]} 31. fxe4 {[%clk 0:00:04]}  Nf2 {[%clk 0:00:08]} 32. Rhf1 {[%clk 0:00:03]}  Nxd1 {[%clk 0:00:07]} 33. Rxd1 {[%clk 0:00:03]}  Bb4 {[%clk 0:00:08]} 34. Kc2 {[%clk 0:00:03]}  Bxd2 {[%clk 0:00:05]} 35. Rxd2 {[%clk 0:00:04]}  Kg7 {[%clk 0:00:04]} 36. Rf2 {[%clk 0:00:03]}  Rd7 {[%clk 0:00:04]} 37. c5 {[%clk 0:00:03]}  Ra5 {[%clk 0:00:03]} 38. Nd6 {[%clk 0:00:02]}  Rxc5+ {[%clk 0:00:03]} 39. Kb1 {[%clk 0:00:02]}  Rxd6 {[%clk 0:00:03]} 0-1


[Site "https://www.chess.com"]

[Event "Titled Tuesday Blitz March 01 Early 2022"]
[White "Karttunen, Mika"]
[Black "FGHSMN"]
[WhiteFideId "502081"]
[WhiteElo "2343"]
[BlackElo "2710"]
[Result "1-0"]
[Round "09"]
[TimeControl "180+1"]
[Date "2022.03.01"]
[WhiteClock "0:00:05"]
[BlackClock "0:00:03"]

1. c4 {[%clk 0:03:00]}  e5 {[%clk 0:02:58]} 2. Nc3 {[%clk 0:02:59]}  Nc6 {[%clk 0:02:59]} 3. g3 {[%clk 0:02:59]}  f5 {[%clk 0:02:59]} 4. Bg2 {[%clk 0:02:58]}  Nf6 {[%clk 0:02:59]} 5. d3 {[%clk 0:02:57]}  Bb4 {[%clk 0:02:58]} 6. Bd2 {[%clk 0:02:56]}  d6 {[%clk 0:02:55]} 7. e3 {[%clk 0:02:52]}  Bxc3 {[%clk 0:02:49]} 8. Bxc3 {[%clk 0:02:50]}  O-O {[%clk 0:02:48]} 9. Ne2 {[%clk 0:02:50]}  Qe8 {[%clk 0:02:44]} 10. Qc2 {[%clk 0:02:32]}  Be6 {[%clk 0:02:29]} 11. b4 {[%clk 0:02:04]}  Rb8 {[%clk 0:02:12]} 12. b5 {[%clk 0:02:03]}  Ne7 {[%clk 0:02:10]} 13. a4 {[%clk 0:02:01]}  Qh5 {[%clk 0:02:05]} 14. h3 {[%clk 0:01:59]}  Ng6 {[%clk 0:01:55]} 15. f4 {[%clk 0:01:09]}  exf4 {[%clk 0:01:45]} 16. exf4 {[%clk 0:01:05]}  Rbe8 {[%clk 0:01:21]} 17. Kf2 {[%clk 0:01:05]}  d5 {[%clk 0:01:13]} 18. Bf3 {[%clk 0:00:55]}  Qh6 {[%clk 0:01:11]} 19. Bb4 {[%clk 0:00:48]}  Rf7 {[%clk 0:01:00]} 20. Rae1 {[%clk 0:00:45]}  dxc4 {[%clk 0:00:53]} 21. dxc4 {[%clk 0:00:40]}  Ne4+ {[%clk 0:00:49]} 22. Bxe4 {[%clk 0:00:40]}  fxe4 {[%clk 0:00:49]} 23. Qxe4 {[%clk 0:00:40]}  Bd7 {[%clk 0:00:36]} 24. Qxb7 {[%clk 0:00:29]}  Ne5 {[%clk 0:00:35]} 25. Qd5 {[%clk 0:00:23]}  c6 {[%clk 0:00:29]} 26. Qd4 {[%clk 0:00:23]}  cxb5 {[%clk 0:00:27]} 27. axb5 {[%clk 0:00:23]}  Bxh3 {[%clk 0:00:26]} 28. Qd5 {[%clk 0:00:04]}  Ng4+ {[%clk 0:00:18]} 29. Kg1 {[%clk 0:00:04]}  Ne3 {[%clk 0:00:17]} 30. Qf3 {[%clk 0:00:04]}  Bg4 {[%clk 0:00:16]} 31. Rxh6 {[%clk 0:00:02]}  Bxf3 {[%clk 0:00:16]} 32. Rd6 {[%clk 0:00:02]}  Nxc4 {[%clk 0:00:16]} 33. Rd4 {[%clk 0:00:02]}  Nb6 {[%clk 0:00:11]} 34. Kf2 {[%clk 0:00:02]}  Bg4 {[%clk 0:00:11]} 35. Ng1 {[%clk 0:00:02]}  Rc8 {[%clk 0:00:09]} 36. Nf3 {[%clk 0:00:02]}  h6 {[%clk 0:00:09]} 37. Ne5 {[%clk 0:00:02]}  Rc2+ {[%clk 0:00:07]} 38. Rd2 {[%clk 0:00:02]}  Rxd2+ {[%clk 0:00:06]} 39. Bxd2 {[%clk 0:00:03]}  Bd7 {[%clk 0:00:06]} 40. Nxf7 {[%clk 0:00:03]}  Kxf7 {[%clk 0:00:07]} 41. Be3 {[%clk 0:00:03]}  Bxb5 {[%clk 0:00:06]} 42. Rb1 {[%clk 0:00:03]}  Bd3 {[%clk 0:00:06]} 43. Rb3 {[%clk 0:00:03]}  Bc4 {[%clk 0:00:06]} 44. Ra3 {[%clk 0:00:04]}  Nd5 {[%clk 0:00:06]} 45. Rxa7+ {[%clk 0:00:04]}  Kg6 {[%clk 0:00:05]} 46. Ra4 {[%clk 0:00:03]}  Bb5 {[%clk 0:00:04]} 47. Rd4 {[%clk 0:00:03]}  Nf6 {[%clk 0:00:03]} 48. Rd6 {[%clk 0:00:03]}  Kf5 {[%clk 0:00:03]} 49. Rb6 {[%clk 0:00:03]}  Bd3 {[%clk 0:00:02]} 50. Bd4 {[%clk 0:00:03]}  Ng4+ {[%clk 0:00:02]} 51. Kf3 {[%clk 0:00:03]}  Be4+ {[%clk 0:00:02]} 52. Ke2 {[%clk 0:00:03]}  g5 {[%clk 0:00:02]} 53. Rb5+ {[%clk 0:00:02]}  Kg6 {[%clk 0:00:03]} 54. Rb6+ {[%clk 0:00:02]}  Kf5 {[%clk 0:00:03]} 55. Rb5+ {[%clk 0:00:03]}  Kg6 {[%clk 0:00:04]} 56. Be3 {[%clk 0:00:03]}  gxf4 {[%clk 0:00:03]} 57. Bxf4 {[%clk 0:00:03]}  h5 {[%clk 0:00:04]} 58. Rg5+ {[%clk 0:00:02]}  Kf6 {[%clk 0:00:03]} 59. Rxh5 {[%clk 0:00:03]}  Ke6 {[%clk 0:00:03]} 60. Rh8 {[%clk 0:00:03]}  Kf7 {[%clk 0:00:03]} 61. Rd8 {[%clk 0:00:02]}  Bf5 {[%clk 0:00:03]} 62. Rb8 {[%clk 0:00:02]}  Nf6 {[%clk 0:00:04]} 63. Rb7+ {[%clk 0:00:02]}  Kg6 {[%clk 0:00:04]} 64. Rb6 {[%clk 0:00:02]}  Bg4+ {[%clk 0:00:04]} 65. Kd3 {[%clk 0:00:02]}  Kf5 {[%clk 0:00:05]} 66. Kd4 {[%clk 0:00:03]}  Nh5 {[%clk 0:00:04]} 67. Rb5+ {[%clk 0:00:03]}  Ke6 {[%clk 0:00:04]} 68. Rb6+ {[%clk 0:00:03]}  Kf7 {[%clk 0:00:04]} 69. Rh6 {[%clk 0:00:03]}  Ng7 {[%clk 0:00:04]} 70. Ke5 {[%clk 0:00:03]}  Nf5 {[%clk 0:00:03]} 71. Rf6+ {[%clk 0:00:04]}  Kg7 {[%clk 0:00:03]} 72. Rxf5 {[%clk 0:00:05]} 1-0


[Site "https://www.chess.com"]

[Event "Titled Tuesday Blitz March 01 Early 2022"]
[White "Kejzar, Petra"]
[Black "Musovic, Armin"]
[WhiteFideId "14610213"]
[BlackFideId "939935"]
[WhiteElo "2006"]
[BlackElo "2250"]
[Result "0-1"]
[Round "09"]
[TimeControl "180+1"]
[Date "2022.03.01"]
[WhiteClock "0:00:01"]
[BlackClock "0:00:20"]

1. e4 {[%clk 0:03:00]}  c6 {[%clk 0:02:37]} 2. c4 {[%clk 0:02:58]}  d5 {[%clk 0:02:38]} 3. cxd5 {[%clk 0:02:58]}  cxd5 {[%clk 0:02:39]} 4. exd5 {[%clk 0:02:59]}  e6 {[%clk 0:02:39]} 5. dxe6 {[%clk 0:02:57]}  Bxe6 {[%clk 0:02:40]} 6. Nf3 {[%clk 0:02:57]}  Nc6 {[%clk 0:02:41]} 7. d4 {[%clk 0:02:57]}  a6 {[%clk 0:02:41]} 8. Nc3 {[%clk 0:02:57]}  Nf6 {[%clk 0:02:42]} 9. Bg5 {[%clk 0:02:55]}  Be7 {[%clk 0:02:41]} 10. Be2 {[%clk 0:02:47]}  O-O {[%clk 0:02:17]} 11. O-O {[%clk 0:02:47]}  Nd5 {[%clk 0:02:18]} 12. Be3 {[%clk 0:02:43]}  Re8 {[%clk 0:02:16]} 13. Bd3 {[%clk 0:02:28]}  h6 {[%clk 0:02:14]} 14. a3 {[%clk 0:02:27]}  Rc8 {[%clk 0:02:13]} 15. Bc2 {[%clk 0:02:26]}  Nf6 {[%clk 0:02:09]} 16. Qd3 {[%clk 0:02:23]}  Bd6 {[%clk 0:02:06]} 17. d5 {[%clk 0:02:01]}  Bg4 {[%clk 0:01:56]} 18. dxc6 {[%clk 0:01:58]}  Bxf3 {[%clk 0:01:57]} 19. gxf3 {[%clk 0:01:55]}  Rxc6 {[%clk 0:01:57]} 20. Kh1 {[%clk 0:01:47]}  Qa5 {[%clk 0:01:51]} 21. Ne4 {[%clk 0:01:40]}  Nxe4 {[%clk 0:01:37]} 22. fxe4 {[%clk 0:01:39]}  Qh5 {[%clk 0:01:29]} 23. f4 {[%clk 0:01:36]}  Qh3 {[%clk 0:00:36]} 24. e5 {[%clk 0:01:23]}  Bc7 {[%clk 0:00:36]} 25. Bg1 {[%clk 0:00:49]}  Qh5 {[%clk 0:00:28]} 26. b4 {[%clk 0:00:44]}  Rd8 {[%clk 0:00:20]} 27. Qh7+ {[%clk 0:00:42]}  Kf8 {[%clk 0:00:21]} 28. Bc5+ {[%clk 0:00:40]}  Rxc5 {[%clk 0:00:20]} 29. bxc5 {[%clk 0:00:39]}  Rd2 {[%clk 0:00:20]} 30. Qh8+ {[%clk 0:00:03]}  Ke7 {[%clk 0:00:20]} 31. Rf2 {[%clk 0:00:01]}  Rxf2 {[%clk 0:00:20]} 0-1


[Site "https://www.chess.com"]

[Event "Titled Tuesday Blitz March 01 Early 2022"]
[White "Kirillov, Dmitry"]
[Black "Costachi, Mihnea"]
[WhiteFideId "34180572"]
[BlackFideId "1217518"]
[WhiteElo "2076"]
[BlackElo "2464"]
[Result "1-0"]
[Round "09"]
[TimeControl "180+1"]
[Date "2022.03.01"]
[WhiteClock "0:00:14"]
[BlackClock "0:00:14"]

1. e4 {[%clk 0:03:00]}  e5 {[%clk 0:02:59]} 2. d4 {[%clk 0:02:56]}  exd4 {[%clk 0:02:59]} 3. Qxd4 {[%clk 0:02:57]}  Nc6 {[%clk 0:02:59]} 4. Qe3 {[%clk 0:02:57]}  g6 {[%clk 0:02:51]} 5. Bd2 {[%clk 0:02:53]}  Bg7 {[%clk 0:02:51]} 6. Nc3 {[%clk 0:02:50]}  d6 {[%clk 0:02:52]} 7. O-O-O {[%clk 0:02:43]}  Nge7 {[%clk 0:02:51]} 8. Nge2 {[%clk 0:02:40]}  a6 {[%clk 0:02:46]} 9. Nf4 {[%clk 0:02:38]}  b5 {[%clk 0:02:45]} 10. Ncd5 {[%clk 0:02:32]}  O-O {[%clk 0:02:44]} 11. h4 {[%clk 0:02:28]}  Nxd5 {[%clk 0:02:45]} 12. Nxd5 {[%clk 0:02:23]}  Ne7 {[%clk 0:02:44]} 13. h5 {[%clk 0:02:19]}  Nxd5 {[%clk 0:02:44]} 14. exd5 {[%clk 0:02:20]}  Re8 {[%clk 0:02:41]} 15. Qg3 {[%clk 0:02:18]}  b4 {[%clk 0:02:35]} 16. hxg6 {[%clk 0:02:10]}  hxg6 {[%clk 0:02:35]} 17. Bxb4 {[%clk 0:02:10]}  Re5 {[%clk 0:01:55]} 18. f4 {[%clk 0:02:07]}  Re8 {[%clk 0:01:30]} 19. Bc3 {[%clk 0:02:05]}  Qe7 {[%clk 0:01:30]} 20. Re1 {[%clk 0:01:36]}  Qd7 {[%clk 0:01:13]} 21. Rxe8+ {[%clk 0:01:28]}  Qxe8 {[%clk 0:01:14]} 22. Bxg7 {[%clk 0:01:28]}  Kxg7 {[%clk 0:01:14]} 23. Qc3+ {[%clk 0:01:24]}  f6 {[%clk 0:01:11]} 24. Qxc7+ {[%clk 0:01:20]}  Bd7 {[%clk 0:01:08]} 25. Bd3 {[%clk 0:01:20]}  Qe7 {[%clk 0:01:01]} 26. Qc3 {[%clk 0:01:06]}  Rc8 {[%clk 0:00:57]} 27. Qd2 {[%clk 0:01:03]}  Bb5 {[%clk 0:00:52]} 28. Re1 {[%clk 0:00:53]}  Qb7 {[%clk 0:00:51]} 29. Bxb5 {[%clk 0:00:46]}  Qxb5 {[%clk 0:00:50]} 30. b3 {[%clk 0:00:39]}  Rc7 {[%clk 0:00:47]} 31. Kb2 {[%clk 0:00:35]}  Qc5 {[%clk 0:00:47]} 32. Re6 {[%clk 0:00:33]}  a5 {[%clk 0:00:42]} 33. a4 {[%clk 0:00:32]}  Kf7 {[%clk 0:00:38]} 34. g4 {[%clk 0:00:29]}  Rc8 {[%clk 0:00:27]} 35. g5 {[%clk 0:00:27]}  f5 {[%clk 0:00:26]} 36. Rf6+ {[%clk 0:00:26]}  Kg7 {[%clk 0:00:27]} 37. Re6 {[%clk 0:00:21]}  Rc7 {[%clk 0:00:22]} 38. Qh2 {[%clk 0:00:17]}  Qc3+ {[%clk 0:00:17]} 39. Kb1 {[%clk 0:00:17]}  Kf7 {[%clk 0:00:10]} 40. Qh7+ {[%clk 0:00:17]}  Qg7 {[%clk 0:00:11]} 41. Rf6+ {[%clk 0:00:15]}  Ke8 {[%clk 0:00:12]} 42. Re6+ {[%clk 0:00:12]}  Kd8 {[%clk 0:00:11]} 43. Rxd6+ {[%clk 0:00:12]}  Kc8 {[%clk 0:00:12]} 44. Qxg7 {[%clk 0:00:12]}  Rxg7 {[%clk 0:00:12]} 45. Ra6 {[%clk 0:00:12]}  Kb7 {[%clk 0:00:12]} 46. Rxa5 {[%clk 0:00:12]}  Re7 {[%clk 0:00:13]} 47. Rb5+ {[%clk 0:00:13]}  Kc7 {[%clk 0:00:13]} 48. d6+ {[%clk 0:00:12]}  Kxd6 {[%clk 0:00:13]} 49. Rb6+ {[%clk 0:00:12]}  Kd5 {[%clk 0:00:13]} 50. Rxg6 {[%clk 0:00:13]}  Ke4 {[%clk 0:00:13]} 51. Rf6 {[%clk 0:00:11]}  Kxf4 {[%clk 0:00:13]} 52. g6 {[%clk 0:00:12]}  Kg5 {[%clk 0:00:14]} 53. Rf7 {[%clk 0:00:12]}  Re1+ {[%clk 0:00:14]} 54. Kb2 {[%clk 0:00:13]}  Kxg6 {[%clk 0:00:15]} 55. Rf8 {[%clk 0:00:13]}  Kg5 {[%clk 0:00:14]} 56. a5 {[%clk 0:00:13]}  Re6 {[%clk 0:00:12]} 57. b4 {[%clk 0:00:13]}  f4 {[%clk 0:00:13]} 58. b5 {[%clk 0:00:14]}  Re5 {[%clk 0:00:14]} 59. c4 {[%clk 0:00:14]}  Rf5 {[%clk 0:00:14]} 60. Rg8+ {[%clk 0:00:12]}  Kf6 {[%clk 0:00:13]} 61. a6 {[%clk 0:00:11]}  f3 {[%clk 0:00:14]} 62. a7 {[%clk 0:00:11]}  f2 {[%clk 0:00:14]} 63. Rf8+ {[%clk 0:00:12]}  Ke5 {[%clk 0:00:13]} 64. Rxf5+ {[%clk 0:00:13]}  Kxf5 {[%clk 0:00:13]} 65. a8=Q {[%clk 0:00:13]}  f1=Q {[%clk 0:00:13]} 66. Qf8+ {[%clk 0:00:14]}  Kg4 {[%clk 0:00:14]} 67. Qxf1 {[%clk 0:00:14]} 1-0


[Site "https://www.chess.com"]

[Event "Titled Tuesday Blitz March 01 Early 2022"]
[White "Kohler, Aran"]
[Black "Qashashvili, Alexandre"]
[WhiteFideId "1002856"]
[BlackFideId "13600842"]
[WhiteElo "2259"]
[BlackElo "2316"]
[Result "1-0"]
[Round "09"]
[TimeControl "180+1"]
[Date "2022.03.01"]
[WhiteClock "0:01:06"]
[BlackClock "0:01:48"]

1. d4 {[%clk 0:02:59]}  c6 {[%clk 0:03:00]} 2. c3 {[%clk 0:02:57]}  d5 {[%clk 0:03:01]} 3. Bg5 {[%clk 0:02:56]}  Bf5 {[%clk 0:03:01]} 4. e3 {[%clk 0:02:54]}  Qb6 {[%clk 0:03:00]} 5. Qb3 {[%clk 0:02:50]}  Qxb3 {[%clk 0:02:58]} 6. axb3 {[%clk 0:02:49]}  e6 {[%clk 0:02:59]} 7. Nd2 {[%clk 0:02:47]}  Be7 {[%clk 0:02:58]} 8. Bxe7 {[%clk 0:02:40]}  Nxe7 {[%clk 0:02:57]} 9. f3 {[%clk 0:02:38]}  Nd7 {[%clk 0:02:57]} 10. e4 {[%clk 0:02:38]}  dxe4 {[%clk 0:02:56]} 11. fxe4 {[%clk 0:02:38]}  Bg6 {[%clk 0:02:56]} 12. Ngf3 {[%clk 0:02:35]}  O-O {[%clk 0:02:54]} 13. b4 {[%clk 0:02:30]}  a6 {[%clk 0:02:54]} 14. Be2 {[%clk 0:02:26]}  Rad8 {[%clk 0:02:54]} 15. O-O {[%clk 0:02:25]}  Bh5 {[%clk 0:02:51]} 16. h3 {[%clk 0:02:17]}  e5 {[%clk 0:02:49]} 17. g4 {[%clk 0:02:15]}  Bg6 {[%clk 0:02:48]} 18. Rad1 {[%clk 0:01:45]}  exd4 {[%clk 0:02:46]} 19. Nxd4 {[%clk 0:01:42]}  Ne5 {[%clk 0:02:42]} 20. Nf5 {[%clk 0:01:33]}  Rfe8 {[%clk 0:02:38]} 21. Nc4 {[%clk 0:01:30]}  Rxd1 {[%clk 0:02:33]} 22. Rxd1 {[%clk 0:01:27]}  Bxf5 {[%clk 0:02:19]} 23. exf5 {[%clk 0:01:24]}  Nd5 {[%clk 0:02:13]} 24. Nxe5 {[%clk 0:01:20]}  Rxe5 {[%clk 0:02:13]} 25. Bf3 {[%clk 0:01:19]}  Kf8 {[%clk 0:02:10]} 26. Bxd5 {[%clk 0:01:17]}  Rxd5 {[%clk 0:02:11]} 27. Rxd5 {[%clk 0:01:17]}  cxd5 {[%clk 0:02:12]} 28. Kf2 {[%clk 0:01:17]}  Ke7 {[%clk 0:02:11]} 29. Ke3 {[%clk 0:01:17]}  Kd6 {[%clk 0:02:12]} 30. Kd4 {[%clk 0:01:15]}  f6 {[%clk 0:02:10]} 31. h4 {[%clk 0:01:15]}  b6 {[%clk 0:02:07]} 32. b3 {[%clk 0:01:15]}  Kc6 {[%clk 0:02:07]} 33. g5 {[%clk 0:01:12]}  fxg5 {[%clk 0:02:02]} 34. hxg5 {[%clk 0:01:11]}  Kd6 {[%clk 0:02:02]} 35. c4 {[%clk 0:01:11]}  dxc4 {[%clk 0:02:01]} 36. bxc4 {[%clk 0:01:11]}  a5 {[%clk 0:01:59]} 37. c5+ {[%clk 0:01:11]}  bxc5+ {[%clk 0:01:58]} 38. bxc5+ {[%clk 0:01:11]}  Kc6 {[%clk 0:01:57]} 39. f6 {[%clk 0:01:10]}  gxf6 {[%clk 0:01:58]} 40. gxf6 {[%clk 0:01:10]}  a4 {[%clk 0:01:59]} 41. f7 {[%clk 0:01:10]}  a3 {[%clk 0:01:59]} 42. f8=Q {[%clk 0:01:10]}  a2 {[%clk 0:01:59]} 43. Qa8+ {[%clk 0:01:09]}  Kb5 {[%clk 0:01:58]} 44. Qxa2 {[%clk 0:01:09]}  h5 {[%clk 0:01:59]} 45. Qh2 {[%clk 0:01:08]}  h4 {[%clk 0:01:58]} 46. Qxh4 {[%clk 0:01:08]}  Kc6 {[%clk 0:01:54]} 47. Kc4 {[%clk 0:01:08]}  Kb7 {[%clk 0:01:54]} 48. Qh6 {[%clk 0:01:07]}  Ka7 {[%clk 0:01:53]} 49. Kb5 {[%clk 0:01:07]}  Ka8 {[%clk 0:01:53]} 50. Qg7 {[%clk 0:01:07]}  Kb8 {[%clk 0:01:49]} 51. Kb6 {[%clk 0:01:07]}  Kc8 {[%clk 0:01:48]} 52. Qc7# {[%clk 0:01:06]} 1-0


[Site "https://www.chess.com"]